Cogmind - Beta 15 @@@ ROGUE MODE // 2025.06.20 @ 22:24:36 Player: Storm Mk9 Result: Destroyed by Y-64 Sentinel with Wave Gun Performance ------------- Evolutions (5) 2500 Regions Visited (13) 2600 Robots Destroyed (157) 785 Value Destroyed (5652) 5652 Prototype IDs (29) 580 Alien Tech Used (0) 0 Bonus (4997) 4997 TOTAL SCORE: 17114 Bonus ------- High Alert Combat Kills 935 Follower Combat Kills 3421 Built Enhanced Grunts 300 Met R17 at Cetus 500 Friendly Fire -159 Cogmind --------- Core Integrity 0/1000 Matter 122/300 Energy 22/100 System Corruption 12% Temperature Cool (9) Movement Walking (106) Location -5/Factory Parts ------- > --- POWER (2) -------- (None) > --- PROPULSION (3) --- HC-Diametric Exoskeleton > --- UTILITY (8) ------ Armored Scrap Engine Targeting Computer Precision Matter Filter Improved System Shield Advanced System Shield > --- WEAPON (4) ------- Accelerated Wave Construct/G > --- INVENTORY (5) ---- High-capacity Matter Pod (5) Improved Weapon Cycler Hypervelocity Gauss Cannon Great Maul PL-3XN's Ring of Power Peak State ------------ > --- POWER ------------ Neutrino-Deuterium Core > --- PROPULSION ------- HC-Diametric Exoskeleton > --- UTILITY ---------- Armored Scrap Engine Advanced Heat Sink Huge Storage Unit Layered Medium Armor Plating Centrium Medium Armor Plating Centrium Medium Armor Plating Experimental Thermal Shield > --- WEAPON ----------- Accelerated Wave Construct/G > --- INVENTORY -------- Neutrino Core Neutrino Core Light Treads High-capacity Matter Pod Hardened Light Armor Plating Improved Light Armor Plating Improved Light Armor Plating Improved Light Armor Plating Layered Medium Armor Plating Medium Reflective Plating System Restoration Module System Restoration Module Heavy Plasma Cannon Advanced KE Penetrator Gauss Cannon Great Maul [Rating: 99] Favorites ----------- Power Constructs Engine Ion Engine Power Core Constructs Propulsion Constructs Treads Light Treads Leg Constructs Wheel Wheel Utility Huge Storage Unit Device Armored Scrap Engine Storage Huge Storage Unit Processor Targeting Computer Hackware Advanced System Shield Protection Hardened Light Armor Plating Weapon Constructs Energy Gun Constructs Energy Cannon Neutron Cannon Ballistic Gun Subdweller Machine Gun Ballistic Cannon Gauss Cannon Impact Weapon Great Maul Build | -11 -10 -10 -8 -8 -8 -6 -6 -6 -6 -6 -5 -5 -5 ------- Run | Yrd Mat Sub Mat Sto Rec Fac Ext Cet Arc Hub Fac Was Fac Slots Evolved 10 | . . . 4 . . 4 . . . . 2 . . Power 1 | . . . . . . 1 . . . . . . . Propulsion 1 | . . . . . . 1 . . . . . . . Utility 6 | . . . 3 . . 1 . . . . 2 . . Weapon 2 | . . . 1 . . 1 . . . . . . . Parts Attached 90 | 6 2 3 15 12 2 8 9 3 1 3 21 . 5 Power 3 | 1 . . 1 1 . . . . . . . . . Engine 2 | 1 . . . 1 . . . . . . . . . Core 1 | . . . 1 . . . . . . . . . . Reactor . | . . . . . . . . . . . . . . Propulsion 11 | 2 . . 3 3 . . . . . . 3 . . Treads 9 | 2 . . 3 3 . . . . . . 1 . . Leg . | . . . . . . . . . . . . . . Wheel 2 | . . . . . . . . . . . 2 . . Hover . | . . . . . . . . . . . . . . Flight . | . . . . . . . . . . . . . . Utility 54 | 1 2 1 7 4 1 6 8 1 . 3 15 . 5 Device 28 | . 1 . 1 3 1 3 6 . . 2 8 . 3 Storage 5 | 1 1 1 2 . . . . . . . . . . Processor 3 | . . . 1 . . 1 . . . . 1 . . Hackware 2 | . . . . . . . . . . . . . 2 Protection 16 | . . . 3 1 . 2 2 1 . 1 6 . . Artifact . | . . . . . . . . . . . . . . Weapon 22 | 2 . 2 4 4 1 2 1 2 1 . 3 . . Energy Gun 6 | 1 . . 3 1 . . . 1 . . . . . Energy Cannon 2 | . . . . . . 1 . . 1 . . . . Ballistic Gun 11 | 1 . 2 1 3 . 1 1 1 . . 1 . . Ballistic Cannon 2 | . . . . . . . . . . . 2 . . Launcher . | . . . . . . . . . . . . . . Special Weapon . | . . . . . . . . . . . . . . Impact Weapon 1 | . . . . . 1 . . . . . . . . Slashing Weapon . | . . . . . . . . . . . . . . Piercing Weapon . | . . . . . . . . . . . . . . Special Melee Weapon . | . . . . . . . . . . . . . . Unidentified Prototypes 17 | . . . 2 4 1 4 . 3 1 1 . . 1 Parts Lost 46 | . . 1 6 2 . 2 2 . . 3 29 . 1 Power 4 | . . . . . . 1 . . . 1 2 . . Propulsion 7 | . . . 1 . . . . . . . 6 . . Utility 25 | . . . 2 1 . . 2 . . 2 17 . 1 Weapon 10 | . . 1 3 1 . 1 . . . . 4 . . Highest Loss Streak 10 | . . 1 3 1 . 1 1 . . 1 10 . 1 To Critical Strikes . | . . . . . . . . . . . . . . Average Backups 16 | 2 2 4 18 24 21 19 21 24 25 24 12 4 4 Power 2 | . 1 1 2 3 3 2 2 3 3 3 . . . Propulsion 2 | . . . 4 8 5 1 1 2 3 3 . . . Utility 7 | . . 2 3 5 5 9 11 13 14 13 8 2 2 Weapon 4 | 1 1 1 8 7 6 4 5 5 5 5 3 2 2 Tool/Special . | . . . . . . . . . . . . . . Unused Backups 32 | . . . 1 . 6 9 4 3 . 1 7 . 1 Power 11 | . . . 1 . 1 3 3 . . . 3 . . Propulsion 7 | . . . . . 2 3 . . . . 2 . . Utility 4 | . . . . . . 1 . 1 . 1 . . 1 Weapon 10 | . . . . . 3 2 1 2 . . 2 . . Tool/Special . | . . . . . . . . . . . . . . Average Slot Usage (%) 71 | . 100 99 98 99 84 53 53 53 56 52 54 13 36 Engine 6 | . 14 14 2 . 8 5 4 6 6 6 . . . Core 1 | . . . 6 8 . 1 1 . . . 4 . . Treads 11 | . 28 28 17 18 14 6 6 6 6 6 1 . . Device 17 | . 14 14 11 15 18 19 20 20 20 19 18 5 17 Storage 7 | . 14 14 9 9 9 6 6 6 6 6 4 . . Processor 2 | . . . 8 9 9 . . . . . . 5 5 Protection 6 | . . . 14 11 5 4 5 6 6 6 13 . . Energy Gun 4 | . 14 14 8 11 5 . . . . . . . 1 Energy Cannon 1 | . . . . . . 2 1 . 4 6 3 2 . Ballistic Gun 6 | . 14 13 17 15 10 . . . . . . . . Ballistic Cannon 2 | . . . . . 2 3 4 5 4 . 2 . 1 Peak Build Rating 99 | 6 7 9 32 34 50 68 79 85 91 88 99 30 77 Average Rating 49 | 4 7 7 26 30 38 62 70 78 87 84 75 25 59 On Entrance 41 | . 6 7 9 24 34 45 66 75 84 84 82 35 23 Naked Turns . | . . . . . . . . . . . . . . Heaviest Build 143 | 13 19 31 107 104 104 109 132 138 138 143 142 8 20 Greatest Support 95 | 40 40 40 44 42 42 82 82 82 82 82 95 3 52 Greatest Overweight (x) 44 | . . . 4 2 2 2 1 1 1 1 44 2 . Average Overweight (x) 1 | . . . 1 2 2 1 1 1 1 1 3 . . Largest Inventory Capacity 25 | 8 10 15 25 25 25 25 25 25 25 25 25 5 5 Average Capacity 22 | 7 9 14 22 25 25 25 25 25 25 25 23 5 5 Most Carried 25 | 5 3 7 25 25 25 23 25 25 25 25 22 5 5 Average Carried 17 | 2 2 4 18 24 21 19 21 24 25 24 12 5 5 Final Capacity 25 | 8 10 15 25 25 25 25 25 25 25 25 5 5 5 Final Carried 25 | 3 3 7 25 25 18 18 24 25 25 23 4 5 5 Scrap Engine Consumption 150 | . . . . . 21 31 23 10 6 2 46 3 8 Constructs Created 8 | . . . . . 3 . . . . . 3 . 2 Constructs Modified 58 | . . . . . 5 17 13 5 2 1 12 . 3 Class Distribution -------------------- 27% | Commander-Construct 24% | Mutant 19% | Construct 12% | Commander-Gunner 6% | Tank 4% | Scavenger-Mutant 3% | Gunner Dominant Class ---------------- Mutant | -10/Materials Mutant | -10/Subcaves Tank | -8/Materials Commander-Gunner | -8/Storage Commander-Gunner | -8/Recycling Commander-Construct | -6/Factory Construct | -6/Extension Commander-Construct | -6/Cetus Commander-Construct | -6/Archives Construct | -6/Hub_04(d) Mutant | -5/Factory Mutant | -5/Waste Mutant | -5/Factory Resources | -11 -10 -10 -8 -8 -8 -6 -6 -6 -6 -6 -5 -5 -5 ----------- Run | Yrd Mat Sub Mat Sto Rec Fac Ext Cet Arc Hub Fac Was Fac Matter Collected 3035 | 246 38 122 535 236 100 153 311 106 18 142 977 . 51 Remotely . | . . . . . . . . . . . . . . Salvage Created 6847 | 29 75 258 661 366 107 556 604 78 67 652 3276 . 118 Parts 377 | 3 5 10 36 15 8 37 33 1 4 28 191 . 6 Haulers Intercepted 7 | . . . 1 2 . . . . . 3 1 . . Recyclers Shooed 6 | . . . . . . . . . . . 6 . . Parts Field Recycled . | . . . . . . . . . . . . . . Retrieved Matter . | . . . . . . . . . . . . . . Parts Self-Destructed 10 | . . 10 . . . . . . . . . . . Prevented . | . . . . . . . . . . . . . . Kills | -11 -10 -10 -8 -8 -8 -6 -6 -6 -6 -6 -5 -5 -5 ------- Run | Yrd Mat Sub Mat Sto Rec Fac Ext Cet Arc Hub Fac Was Fac Combat Hostiles Destroyed 107 | . 2 5 16 5 2 16 7 1 1 6 44 . 2 Guns 32 | . 2 5 16 5 2 . . . . . . . 2 Cannons 70 | . . . . . . 16 7 1 1 6 39 . . AOE 4 | . . . . . . . . . . . 4 . . Classes Destroyed 19 | 1 1 2 3 1 . 6 2 . . 2 . . 1 Worker 13 | . . . . . . . . . . 1 12 . . Builder 18 | . . . . . . 1 . . . . 17 . . Tunneler 1 | 1 . . . . . . . . . . . . . Hauler 7 | . . . 1 2 . . . . . 3 1 . . Recycler 8 | . . . . . . . 1 . . . 7 . . Operator 1 | . . . . . . . . . . . . . 1 Watcher 5 | . . . . . . 1 1 . . 1 2 . . Swarmer 28 | . . . 4 . . 5 . . . . 18 . 1 Grunt 25 | . 2 . 5 4 . 2 2 . . 3 6 . 1 Duelist 2 | . . . 1 . . 1 . . . . . . . Protector 1 | . . . . 1 . . . . . . . . . Sentry 14 | . . 1 6 . 2 . 2 . 1 1 1 . . Demolisher 1 | . . . . . . 1 . . . . . . . Specialist 3 | . . . . . . 1 . . . . 2 . . Hunter 10 | . . . . . . . . . . 2 8 . . Programmer 10 | . . . . . . 2 . . . . 8 . . Behemoth 3 | . . . . . . . 2 . . . 1 . . Cetus Guard 1 | . . . . . . . . 1 . . . . . Subdweller 4 | . . 4 . . . . . . . . . . . Assembled 4 | . . . . . . 4 . . . . . . . Thug 2 | . . . . 1 . . 1 . . . . . . Best Kill Streak 15 | 1 2 1 4 3 1 4 2 1 1 5 15 . 1 Combat Bots Only 7 | . 2 1 4 3 1 4 2 1 1 4 7 . 1 Max Kills in Single Turn 12 | 1 1 1 1 1 1 1 1 1 1 1 12 . 1 Gunslinging . | . . . . . . . . . . . . . . Exploded 3 | . . . . . . . . . . . 3 . . Melee . | . . . . . . . . . . . . . . Uniques/NPCs Destroyed . | . . . . . . . . . . . . . . Combat | -11 -10 -10 -8 -8 -8 -6 -6 -6 -6 -6 -5 -5 -5 -------- Run | Yrd Mat Sub Mat Sto Rec Fac Ext Cet Arc Hub Fac Was Fac Hostile Shots Fired 1196 | . 13 28 94 64 10 88 126 17 . 120 580 1 55 Missed 337 | . 4 10 25 15 2 27 49 5 . 27 154 . 19 Hits 859 | . 9 18 69 49 8 61 77 12 . 93 426 1 36 Melee 22 | . . . 3 . . 18 . . . . . 1 . Projectile 837 | . 9 18 66 49 8 43 77 12 . 93 426 . 36 AOE 4 | . . . . . . 2 . . . . 2 . . Critical Strikes 36 | . . . 2 2 . 2 1 4 . 6 17 . 2 Damage Taken 13300 | . 101 412 915 860 119 1151 757 298 22 1424 6576 58 607 Core 1579 | . 21 81 97 68 40 64 74 . . 133 751 58 192 Absorbed by Shields 688 | . . . . . . 367 246 60 . . . . 15 Ignored by Resistances 845 | . . . . . . 3 . . . 296 546 . . Regen/Repaired (Parts) 3066 | . . . . . . 815 394 344 125 . 1156 . 232 Core Remaining (%) 72 | 100 . 59 . . 62 . . . . 68 . . . Volleys Fired 469 | 1 14 24 35 32 7 55 34 15 2 28 214 . 8 Largest 3 | 2 2 2 3 3 3 1 1 1 1 1 1 . 1 Hottest 121 | 60 60 60 113 121 116 45 92 92 92 92 92 . 100 Shots Fired 641 | 2 28 48 105 84 21 54 33 15 2 28 213 . 8 Gun 311 | 2 28 48 105 84 21 . . . . . 16 . 7 Cannon 330 | . . . . . . 54 33 15 2 28 197 . 1 Launcher . | . . . . . . . . . . . . . . Special . | . . . . . . . . . . . . . . Kinetic 436 | 1 14 24 70 49 14 45 26 15 2 . 169 . 7 Thermal 197 | 1 14 24 35 35 7 9 7 . . 28 36 . 1 Explosive . | . . . . . . . . . . . . . . Electromagnetic 8 | . . . . . . . . . . . 8 . . Robot Hit Streak 32 | 1 11 32 14 15 10 5 7 10 1 7 9 . 3 Robot Miss Streak 6 | . 2 1 6 6 1 2 4 1 1 2 6 . 2 Penetration Max 1 | . . . . . . 1 . 1 . . 1 . . Secondary Targets 4 | . . . . 4 . . . . . . . . . Max Gunslinging Chain 1 | . . . . 1 . . . . . . . . . Shots Hit Robots 425 | 1 22 45 72 44 17 35 20 14 1 20 129 . 5 Core Hits 204 | 1 5 14 31 19 4 19 10 4 1 11 81 . 4 Critical Kills 8 | . . . . 1 . . . . . . 7 . . Critical Parts Destroyed 7 | . . . . . 1 . . . . . 6 . . Critical Strikes 28 | . . . 1 3 2 4 . . . 2 16 . . Burn 6 | . . . 1 2 1 . . . . 2 . . . Destroy 16 | . . . . 1 1 . . . . . 14 . . Blast 5 | . . . . . . 4 . . . . 1 . . Corrupt 1 | . . . . . . . . . . . 1 . . Melee Attacks 1 | . . . . . 1 . . . . . . . . Impact 1 | . . . . . 1 . . . . . . . . Slashing . | . . . . . . . . . . . . . . Piercing . | . . . . . . . . . . . . . . Sneak Attacks . | . . . . . . . . . . . . . . Combat Hostiles . | . . . . . . . . . . . . . . Follow-up Attacks . | . . . . . . . . . . . . . . Damage Inflicted 19963 | 10 263 489 1139 955 317 1754 1583 1241 72 1662 10302 . 176 Guns 3743 | 10 263 489 1139 955 317 . . . . . 428 . 142 Cannons 13670 | . . . . . . 1754 1583 1241 72 1662 7324 . 34 Explosions 2550 | . . . . . . . . . . . 2550 . . Melee . | . . . . . . . . . . . . . . Ramming . | . . . . . . . . . . . . . . Kinetic 11898 | . 132 223 633 595 193 1457 1293 1241 72 . 5917 . 142 Thermal 7872 | 10 131 266 506 360 124 297 290 . . 1662 4192 . 34 Explosive 165 | . . . . . . . . . . . 165 . . Electromagnetic 28 | . . . . . . . . . . . 28 . . Impact . | . . . . . . . . . . . . . . Slashing . | . . . . . . . . . . . . . . Piercing . | . . . . . . . . . . . . . . Highest Corruption 12 | . . . . . . 2 12 . . . 8 12 12 Average Corruption 3 | . . . . . . 1 7 . . . 4 10 12 Corruption Purged 19 | . . . . . . . 12 . . . 7 . . Corruption Blocked . | . . . . . . . . . . . . . . Effects 96 | . . . . . . 19 24 . . . 34 4 15 Message Errors 33 | . . . . . . 8 7 . . . 11 . 7 Matter Fused 25 | . . . . . . 6 6 . . . 9 1 3 Heat Flow Errors 14 | . . . . . . . 4 . . . 5 2 3 Energy Discharges 8 | . . . . . . 2 2 . . . 4 . . Parts Rejected 3 | . . . . . . . 1 . . . 2 . . Data Loss (minor) 5 | . . . . . . . 3 . . . 1 . 1 Data Loss (major) 2 | . . . . . . 1 . . . . 1 . . Alerts 1 | . . . . . . 1 . . . . . . . Misdirections 2 | . . . . . . . . . . . . 1 1 Weapon Failures 3 | . . . . . . 1 1 . . . 1 . . Overload Shots . | . . . . . . . . . . . . . . Overflow Damage 1543 | . . . . . . 129 141 33 . 145 1095 . . Projectiles 1019 | . . . . . . 129 141 33 . 145 571 . . Explosions 524 | . . . . . . . . . . . 524 . . Melee . | . . . . . . . . . . . . . . Knockbacks 51 | . . . . . . 11 4 . . . 36 . . Impact . | . . . . . . . . . . . . . . Kinetic 44 | . . . . . . 10 4 . . . 30 . . Secondary 7 | . . . . . . 1 . . . . 6 . . Self-Inflicted Damage 98 | . . . . . . . . . . . 98 . . Shots 3 | . . . . . . . . . . . 3 . . Rammed . | . . . . . . . . . . . . . . Targets Rammed . | . . . . . . . . . . . . . . Kicked . | . . . . . . . . . . . . . . Crushed . | . . . . . . . . . . . . . . Highest Temperature 432 | . 54 . 344 432 37 119 168 139 42 312 212 189 192 Average Temperature 84 | . 32 . 119 164 23 35 55 69 42 139 47 107 58 Received Heat Transfer 2623 | . 54 54 279 486 33 60 202 18 . 831 540 . 66 Effects 8 | . . . . 2 . . . . . 6 . . . Shutdowns 1 | . . . . 1 . . . . . . . . . Energy Bleed 1 | . . . . . . . . . . 1 . . . Interference 5 | . . . . . . . . . . 5 . . . Damage (minor) 1 | . . . . 1 . . . . . . . . . Siege Activations . | . . . . . . . . . . . . . . Martial Activations . | . . . . . . . . . . . . . . Shielding Activations . | . . . . . . . . . . . . . . Robots Disrupted . | . . . . . . . . . . . . . . Combat Hostiles . | . . . . . . . . . . . . . . Robots Corrupted 1 | . . . . . . . . . . . 1 . . Combat Hostiles 1 | . . . . . . . . . . . 1 . . Parts Fried 2 | . . . . . . . . . . . 2 . . Impact Corruptions 2 | . . . . . . . . . . . 2 . . Robots Melted . | . . . . . . . . . . . . . . Combat Hostiles . | . . . . . . . . . . . . . . Parts Melted 11 | . . . . 3 2 . . . . 2 4 . . Heat Transferred 7981 | 25 300 600 1184 935 333 350 300 . . 999 2955 . . Parts Sabotaged . | . . . . . . . . . . . . . . Parts Stolen . | . . . . . . . . . . . . . . Parts Stripped . | . . . . . . . . . . . . . . Power Chain Reactions 6 | . . . . . . . . . . . 6 . . Alert | -11 -10 -10 -8 -8 -8 -6 -6 -6 -6 -6 -5 -5 -5 ------- Run | Yrd Mat Sub Mat Sto Rec Fac Ext Cet Arc Hub Fac Was Fac Maximum Alert Level 4 | . . . . 3 1 3 3 2 1 2 4 2 1 Low Security (%) 45 | 100 100 . 100 28 94 26 39 . 61 42 . . . Level 1 20 | . . . . 20 5 14 24 77 38 14 28 . 100 Level 2 18 | . . . . 37 . 53 8 22 . 42 11 100 . Level 3 14 | . . . . 12 . 6 27 . . . 52 . . Level 4 1 | . . . . . . . . . . . 8 . . Level 5 . | . . . . . . . . . . . . . . High Security . | . . . . . . . . . . . . . . Max Security . | . . . . . . . . . . . . . . Peak Influence 1235 | 5 50 . 112 725 262 716 887 464 255 631 1235 431 280 Initial 464 | . . . . 22 262 50 346 464 122 36 291 431 280 Average 321 | . 5 . 31 390 49 404 402 346 181 287 696 420 242 Influence Increases 7715 | 5 50 20 459 1046 157 1326 1299 321 193 835 1868 . 136 Destroy 0b10 Robot/C 3660 | . 40 20 320 520 80 560 620 160 80 340 880 . 40 Destroy 0b10 Robot/NC 395 | 5 . . 5 35 . 75 25 10 . 40 195 . 5 Destroy Leader 698 | . 10 . 92 118 . 126 66 . . 90 196 . . Allied During Kill 1537 | . . . . 307 55 252 465 144 80 234 . . . Successful Hack 188 | . . . 7 5 5 62 59 . . 14 9 . 27 Disable Machine 555 | . . . . 60 15 105 15 . 30 75 255 . . Destroy Structure 362 | . . . 5 1 2 96 19 7 3 27 198 . 4 Advance Influence 50 | . . . . . . 50 . . . . . . . Lose Combat Pursuer 270 | . . . 30 . . . 30 . . 15 135 . 60 Influence Decreases 7469 | 5 50 20 405 426 831 618 1178 843 395 343 1232 832 291 Entered New Map 2654 | . . . . 32 412 . 362 365 185 69 306 802 121 Time Decay 3845 | 5 50 20 345 354 419 478 656 318 170 204 636 30 160 Lost Part 450 | . . . 60 20 . 20 20 . . 30 290 . 10 Lost Ally 520 | . . . . 20 . 120 140 160 40 40 . . . Squads Dispatched 44 | . 1 . 1 6 . 11 3 . . 8 13 . 1 Investigation 4 | . . . . 2 . . . . . 2 . . . Extermination 10 | . . . . . . 6 . . . . 4 . . Reinforcement 18 | . 1 . 1 2 . 2 3 . . 3 5 . 1 Assault 6 | . . . . 2 . 3 . . . . 1 . . Garrison 6 | . . . . . . . . . . 3 3 . . Intercept . | . . . . . . . . . . . . . . Searches Triggered . | . . . . . . . . . . . . . . Construction Impeded 6 | . . . . . . 1 2 . . 1 2 . . Haulers Reinforced 3 | . . . . . . . . . . 2 1 . . Active Scanning Responses . | . . . . . . . . . . . . . . Cargo Convoy Interrupts 2 | . . . . . . 1 . . . . 1 . . Stealth | -11 -10 -10 -8 -8 -8 -6 -6 -6 -6 -6 -5 -5 -5 --------- Run | Yrd Mat Sub Mat Sto Rec Fac Ext Cet Arc Hub Fac Was Fac Distress Signals 14 | . . . 1 2 1 2 . 2 . 3 3 . . Communications Jammed . | . . . . . . . . . . . . . . Distress Signals . | . . . . . . . . . . . . . . Times Spotted 274 | . 9 5 38 32 7 43 26 10 2 24 61 6 11 Peak Tracking Total 9 | . 3 1 6 8 1 9 5 5 1 6 7 6 6 Tactical Retreats 14 | . . . 1 . . . 2 . . 1 7 . 3 Traps | -11 -10 -10 -8 -8 -8 -6 -6 -6 -6 -6 -5 -5 -5 ------- Run | Yrd Mat Sub Mat Sto Rec Fac Ext Cet Arc Hub Fac Was Fac Traps Triggered 23 | . . 1 3 3 . 2 9 . . 1 2 . 2 Indirectly . | . . . . . . . . . . . . . . Trap Hack Attempts . | . . . . . . . . . . . . . . Triggered . | . . . . . . . . . . . . . . Disarmed . | . . . . . . . . . . . . . . Reprogrammed . | . . . . . . . . . . . . . . Reused . | . . . . . . . . . . . . . . Traps Extracted . | . . . . . . . . . . . . . . Installed . | . . . . . . . . . . . . . . Triggered . | . . . . . . . . . . . . . . Machines | -11 -10 -10 -8 -8 -8 -6 -6 -6 -6 -6 -5 -5 -5 ---------- Run | Yrd Mat Sub Mat Sto Rec Fac Ext Cet Arc Hub Fac Was Fac Machines Disabled 39 | . . . . 4 1 7 3 . 2 5 17 . . Max in Single Turn 4 | . . . . 1 1 . 1 . . . 4 . . Garrison Access 1 | . . . . . . . . . . . 1 . . Machines Repaired . | . . . . . . . . . . . . . . Machines Dismantled . | . . . . . . . . . . . . . . Machines Sabotaged . | . . . . . . . . . . . . . . Overloaded Fab Kills . | . . . . . . . . . . . . . . Hacking | -11 -10 -10 -8 -8 -8 -6 -6 -6 -6 -6 -5 -5 -5 --------- Run | Yrd Mat Sub Mat Sto Rec Fac Ext Cet Arc Hub Fac Was Fac Machines Accessed 37 | . 3 . 4 2 4 5 9 1 . 3 3 . 3 Terminals 29 | . 3 . 4 2 2 4 9 1 . 2 1 . 1 Fabricators 4 | . . . . . . 1 . . . . 1 . 2 Repair Stations . | . . . . . . . . . . . . . . Recycling Units 1 | . . . . . 1 . . . . . . . . Scanalyzers . | . . . . . . . . . . . . . . Garrison Access 2 | . . . . . . . . . . 1 1 . . Total Hacks 87 | . 11 . 15 6 10 10 14 1 . 6 7 . 7 Successful 36 | . 3 . 4 1 6 6 9 . . 1 4 . 2 Failed 50 | . 8 . 10 5 4 4 5 1 . 5 3 . 5 Catastrophic 14 | . . . 2 2 1 3 . 1 . 2 1 . 2 Database Lockouts 1 | . . . 1 . . . . . . . . . . Manual 56 | . 10 . 11 4 4 6 5 1 . 3 6 . 6 Terminals 72 | . 11 . 15 6 7 8 14 1 . 3 4 . 3 Fabricators 8 | . . . . . . 2 . . . . 2 . 4 Repair Stations . | . . . . . . . . . . . . . . Recycling Units 1 | . . . . . 1 . . . . . . . . Scanalyzers . | . . . . . . . . . . . . . . Garrison Access 4 | . . . . . . . . . . 3 1 . . Terminal Hacks 18 | . 1 . 3 . 4 2 8 . . . . . . Robot Analysis 3 | . . . 1 . . 1 1 . . . . . . Prototype ID Bank 4 | . . . 1 . 2 . 1 . . . . . . Open Door 7 | . . . . . . 1 6 . . . . . . Branch Access Points 1 | . . . 1 . . . . . . . . . . Locate Traps 1 | . 1 . . . . . . . . . . . . Release Object 2 | . . . . . 2 . . . . . . . . Fabricator Hacks 1 | . . . . . . 1 . . . . . . . Network Status 1 | . . . . . . 1 . . . . . . . Repair Station Hacks . | . . . . . . . . . . . . . . Recycling Unit Hacks 1 | . . . . . 1 . . . . . . . . Retrieve Components 1 | . . . . . 1 . . . . . . . . Scanalyzer . | . . . . . . . . . . . . . . Garrison Access Hacks 1 | . . . . . . . . . . . 1 . . Seal Access 1 | . . . . . . . . . . . 1 . . Unauthorized Hacks 15 | . 2 . 1 1 1 3 1 . . 1 3 . 2 Terminals 11 | . 2 . 1 1 1 2 1 . . 1 1 . 1 Botnet 11 | . 2 . 1 1 1 2 1 . . 1 1 . 1 Fabricators 4 | . . . . . . 1 . . . . 2 . 1 Report 2 | . . . . . . 1 . . . . 1 . . Liberate 2 | . . . . . . . . . . . 1 . 1 Repair Stations . | . . . . . . . . . . . . . . Recycling Units . | . . . . . . . . . . . . . . Scanalyzers . | . . . . . . . . . . . . . . Garrison Access . | . . . . . . . . . . . . . . Data Cores Recovered 2 | . . . . . . 2 . . . . . . . Used . | . . . . . . . . . . . . . . Hacking Detections 32 | . 3 . 4 2 3 5 7 1 . 3 1 . 3 Full Trace Events 3 | . . . . 1 1 . . . . 1 . . . Feedback Events . | . . . . . . . . . . . . . . Feedback Blocked . | . . . . . . . . . . . . . . Robot Schematics Acquired . | . . . . . . . . . . . . . . Robots Built . | . . . . . . . . . . . . . . Authchips . | . . . . . . . . . . . . . . Time . | . . . . . . . . . . . . . . Total Robot Build Rating . | . . . . . . . . . . . . . . Part Schematics Acquired . | . . . . . . . . . . . . . . Parts Built . | . . . . . . . . . . . . . . Authchips . | . . . . . . . . . . . . . . Time . | . . . . . . . . . . . . . . Total Part Build Rating . | . . . . . . . . . . . . . . Parts Repaired . | . . . . . . . . . . . . . . Time . | . . . . . . . . . . . . . . Parts Recycled . | . . . . . . . . . . . . . . Recycled Matter . | . . . . . . . . . . . . . . Retrieved Matter . | . . . . . . . . . . . . . . Retrieved Components 4 | . . . . . 4 . . . . . . . . Parts Scanalyzed . | . . . . . . . . . . . . . . Part Schematics Acquired . | . . . . . . . . . . . . . . Parts Damaged . | . . . . . . . . . . . . . . Bothacking | -11 -10 -10 -8 -8 -8 -6 -6 -6 -6 -6 -5 -5 -5 ------------ Run | Yrd Mat Sub Mat Sto Rec Fac Ext Cet Arc Hub Fac Was Fac Used RIF Installer . | . . . . . . . . . . . . . . Robots Hacked . | . . . . . . . . . . . . . . Non-combat . | . . . . . . . . . . . . . . Combat . | . . . . . . . . . . . . . . Robot Hacks Applied . | . . . . . . . . . . . . . . Relay Couplers Released 5 | . . . . . . . . . . . 5 . . Machine Destruction 1 | . . . . . . . . . . . 1 . . Programmers 4 | . . . . . . . . . . . 4 . . Fabnet Peak Effective % . | . . . . . . . . . . . . . . Robots Rewired 22 | . . . . . 7 . 15 . . . . . . Allies Hacked . | . . . . . . . . . . . . . . Hacks Repelled . | . . . . . . . . . . . . . . Allies | -11 -10 -10 -8 -8 -8 -6 -6 -6 -6 -6 -5 -5 -5 -------- Run | Yrd Mat Sub Mat Sto Rec Fac Ext Cet Arc Hub Fac Was Fac Total Allies 46 | . . . . 12 7 . 22 5 . . . . . Largest Group 16 | . . . . 11 16 16 13 13 8 5 . . . Highest-Rated Group 786 | . . . . 204 321 321 514 786 578 414 . . . Highest-Rated Ally 159 | . . . . 31 34 34 159 159 96 96 . . . Total Orders . | . . . . . . . . . . . . . . Ally Attacks 662 | . . . . 156 27 131 176 69 33 70 . . . Total Damage 14549 | . . . . 2268 363 3530 3189 1771 968 2460 . . . Kills 121 | . . . . 26 5 30 29 10 4 17 . . . Allies Corrupted 2 | . . . . . . 2 . . . . . . . Allies Melted . | . . . . . . . . . . . . . . Intel | -11 -10 -10 -8 -8 -8 -6 -6 -6 -6 -6 -5 -5 -5 ------- Run | Yrd Mat Sub Mat Sto Rec Fac Ext Cet Arc Hub Fac Was Fac Active Infowar (turns) 3416 | . 483 2444 487 . . . 2 . . . . . . Traps 2 | . . . . . . . 2 . . . . . . Seismic 3414 | . 483 2444 487 . . . . . . . . . . Robot Analysis Total 3 | . . . 1 . . 1 1 . . . . . . Derelict Logs Recovered 3 | . . 3 . . . . . . . . . . . Drone Launches . | . . . . . . . . . . . . . . Drone Recoveries . | . . . . . . . . . . . . . . Exploration | -11 -10 -10 -8 -8 -8 -6 -6 -6 -6 -6 -5 -5 -5 ------------- Run | Yrd Mat Sub Mat Sto Rec Fac Ext Cet Arc Hub Fac Was Fac Turns Passed 17637 | 94 483 2444 1232 933 2762 2977 2453 716 340 556 2253 60 334 Spaces Moved 6049 | 49 224 1423 383 222 711 904 703 179 94 141 596 87 333 Core 224 | 5 . . . . . . . . . . 120 87 12 Treads 5175 | 44 224 1423 383 222 711 904 703 179 94 141 112 . 35 Legs 142 | . . . . . . . . . . . 69 . 73 Wheels 106 | . . . . . . . . . . . 106 . . Hover 189 | . . . . . . . . . . . 189 . . Flight 213 | . . . . . . . . . . . . . 213 Fastest Speed 50 | 50 160 160 160 317 317 287 287 287 295 322 50 50 50 Average Speed 242 | 148 160 160 264 317 331 294 287 292 309 322 269 66 76 Slowest Speed 2250 | 160 160 160 465 325 367 367 287 295 322 322 2250 150 106 Overloaded Moves . | . . . . . . . . . . . . . . Propulsion Burnouts . | . . . . . . . . . . . . . . Robots Hopped . | . . . . . . . . . . . . . . Potential Cave-ins . | . . . . . . . . . . . . . . Cave-ins Triggered . | . . . . . . . . . . . . . . Exploration Rate (%) 48 | 6 36 75 44 49 97 21 86 56 73 23 24 74 11 Regions Visited 13 Branch Regions 7 Pre-discovered Areas 1 | . . 1 . . . . . . . . . . . Known Exits Taken 3 | . . . 1 1 . . . . . 1 . . . Unknown Exits Taken 8 | 1 1 1 . . 1 1 1 1 1 . . . . Scrap Searched 3 | . . 3 . . . . . . . . . . . Spaces Dug 9 | . . . . . 1 3 . . . . 5 . . Terrain Destroyed 142 | . . . 3 . 1 28 7 . . 5 96 . 2 Melee 1 | . . . . . 1 . . . . . . . . Projectile 107 | . . . 3 . . 28 7 . . 5 62 . 2 AOE 34 | . . . . . . . . . . . 34 . . Terrain Rammed . | . . . . . . . . . . . . . . Walls Destroyed . | . . . . . . . . . . . . . . Machines Disabled . | . . . . . . . . . . . . . . Actions | -11 -10 -10 -8 -8 -8 -6 -6 -6 -6 -6 -5 -5 -5 --------- Run | Yrd Mat Sub Mat Sto Rec Fac Ext Cet Arc Hub Fac Was Fac Total 8527 | 68 321 1542 527 388 1111 1174 1113 361 143 220 1068 89 402 Wait 1527 | 4 79 86 49 100 298 174 246 154 46 44 191 1 55 Move 6037 | 48 223 1422 382 221 710 903 702 178 93 140 596 86 333 Hop . | . . . . . . . . . . . . . . Pick Up 118 | 9 2 6 32 8 4 15 19 5 . 2 16 . . Fast Attach 15 | . . . 5 1 1 . 1 1 1 . . . 5 Attach 67 | 6 1 1 11 5 . 6 7 1 . 2 27 . . Detach 5 | . . . . . 1 1 . . . . 2 1 . Swap 43 | . 1 2 9 10 1 5 4 2 . 2 7 . . Drop 81 | . 1 1 4 7 19 15 10 5 1 2 15 1 . Fire 469 | 1 14 24 35 32 7 55 34 15 2 28 214 . 8 Melee 1 | . . . . . 1 . . . . . . . . Ram . | . . . . . . . . . . . . . . Kick . | . . . . . . . . . . . . . . Crush . | . . . . . . . . . . . . . . Escape Stasis 15 | . . . . 4 . . 10 . . . . . 1 Rewire 149 | . . . . . 69 . 80 . . . . . . Trap . | . . . . . . . . . . . . . . Miscellaneous . | . . . . . . . . . . . . . . Route ------- -11/Scrapyard -10/Materials -10/Subcaves (discovered 2 exits: *Mat / Rec) -8/Materials (discovered 3 exits: Fac x2 / *Sto) -8/Storage -8/Recycling -6/Factory (discovered 2 exits: *Fac / *Ext) -6/Extension (discovered 2 exits: *Fac / *Cet) -6/Cetus (discovered 2 exits: *Fac / [*Arc]) -6/Archives -6/Hub_04(d) -5/Factory -5/Waste -5/Factory History --------- Turn | Location | Event 3 | -11/Scrapyard | Discovered new exit (range 16) 95 | -11/Scrapyard | Entered Materials 317 | -10/Materials | Build established: Mutant 559 | -10/Materials | Discovered new exit (range 6) 578 | -10/Materials | Entered Subcaves 591 | -10/Subcaves | Identified exit to Recycling 618 | -10/Subcaves | Learned 4 Materials zone layouts 832 | -10/Subcaves | A swath of the cavern ceiling suddenly collapsed 1709 | -10/Subcaves | A swath of the cavern ceiling suddenly collapsed 1725 | -10/Subcaves | Shifting Twisted Machinery released Mak. Spear 1780 | -10/Subcaves | Learned location of Zion (-6) 2883 | -10/Subcaves | Shifting Twisted Machinery released Sub. Laser 2998 | -10/Subcaves | Discovered new exit (range 8) 3022 | -10/Subcaves | Entered Materials 3022 | -8/Materials | Evolved 4 slots: Utility x3, Weapon x1 3023 | -8/Materials | Identified exit to Factory 3320 | -8/Materials | Build established: Gunner 3686 | -8/Materials | Identified exit to Storage 3818 | -8/Materials | Build established: Tank 3990 | -8/Materials | Central database locked down 4254 | -8/Materials | Entered Storage 4281 | -8/Storage | Lost 3 parts (3w) 4311 | -8/Storage | Met a pair of Derelict thieves 4597 | -8/Storage | Assisted by bots powering up and referring to "LRC-V3" 4901 | -8/Storage | Build established: Commander-Gunner 5149 | -8/Storage | Used back door to open Recycling access 5149 | -8/Storage | Discovered exit to Recycling (range 5) 5187 | -8/Storage | Entered Recycling 5187 | -8/Recycling | Accompanied by 10 allies 5188 | -8/Recycling | Joined Warlord attack on 0b10 via Recycling 5262 | -8/Recycling | Lost 3 allies 5732 | -8/Recycling | Discovered new exit (range 15) 6783 | -8/Recycling | Entered Scraplab 6796 | -8/Recycling | Found Prototype Device 6796 | -8/Recycling | Identified Scrap Engine 7196 | -8/Recycling | Build established: Commander-Construct 7949 | -8/Recycling | Entered Factory 7949 | -6/Factory | Accompanied by 16 allies 7949 | -6/Factory | Evolved 4 slots: Power x1, Propulsion x1, Utility x1, Weapon x1 8765 | -6/Factory | Lost 4 allies 9180 | -6/Factory | Discovered new exit (range 14) 9349 | -6/Factory | First assault squad dispatched 9457 | -6/Factory | Identified exit to Factory 9741 | -6/Factory | Lost 3 allies 10014 | -6/Factory | Build established: Construct 10175 | -6/Factory | Assembled infested ambush trap array 10846 | -6/Factory | Discovered new exit (range 10) 10888 | -6/Factory | Cargo convoy interrupted 10926 | -6/Factory | Entered Extension 10981 | -6/Extension | System corruption reached 10% 11151 | -6/Extension | Rescued a captive Derelict 11530 | -6/Extension | Rescued A7 11609 | -6/Extension | Rescued a captive Derelict 11745 | -6/Extension | Rescued a captive Derelict 11765 | -6/Extension | Rescued a captive Derelict 11767 | -6/Extension | Rescued a captive Derelict 11975 | -6/Extension | Spotted B-75 Beast 11978 | -6/Extension | Destroyed B-75 Beast 11994 | -6/Extension | Spotted B-75 Beast 12008 | -6/Extension | Destroyed B-75 Beast 12333 | -6/Extension | Discovered new exit (range 16) 12335 | -6/Extension | Discovered exit to Factory (range 15) 12759 | -6/Extension | Lost 3 allies 12766 | -6/Extension | Build established: Commander-Construct 13021 | -6/Extension | Rescued a captive Derelict 13021 | -6/Extension | Rescued a captive Derelict 13379 | -6/Extension | Entered Cetus 13379 | -6/Cetus | Accompanied by 13 allies (A7) 13384 | -6/Cetus | Acquired a Cetus Manufacturing Module code from A7 13414 | -6/Cetus | Spotted Cetus Guard 13414 | -6/Cetus | Spotted Cetus Guard 13416 | -6/Cetus | Spotted Cetus Guard 13418 | -6/Cetus | Spotted Cetus Guard 13422 | -6/Cetus | Destroyed Cetus Guard 13434 | -6/Cetus | Allies destroyed Cetus Guard 13439 | -6/Cetus | Allies destroyed Cetus Guard 13449 | -6/Cetus | Allies destroyed Cetus Guard 13469 | -6/Cetus | Lost 7 allies 13669 | -6/Cetus | Started Cetus Manufacturing Module 13694 | -6/Cetus | Manufactured an Enhanced Grunt 13719 | -6/Cetus | Manufactured an Enhanced Grunt 13731 | -6/Cetus | Discovered new exit (range 15) 13744 | -6/Cetus | Manufactured an Enhanced Grunt 13769 | -6/Cetus | Manufactured an Enhanced Grunt 13794 | -6/Cetus | Manufactured an Enhanced Grunt 13863 | -6/Cetus | Spotted Cetus Guard 13863 | -6/Cetus | Spotted Cetus Guard 13867 | -6/Cetus | Spotted Cetus Guard 13867 | -6/Cetus | Spotted Cetus Guard 13882 | -6/Cetus | Allies destroyed Cetus Guard 13884 | -6/Cetus | Allies destroyed Cetus Guard 13889 | -6/Cetus | Allies destroyed Cetus Guard 13892 | -6/Cetus | Allies destroyed Cetus Guard 13901 | -6/Cetus | Discovered exit to Factory (range 16) 13918 | -6/Cetus | Met Revision 17 14095 | -6/Cetus | Entered Archives 14095 | -6/Archives | Accompanied by 9 allies (A7) 14177 | -6/Archives | Lost 3 allies 14194 | -6/Archives | Discovered new exit (range 15) 14435 | -6/Archives | Entered Hub_04(d) 14435 | -6/Hub_04(d) | Accompanied by 5 allies 14658 | -6/Hub_04(d) | Garrison activated, responded to threat 14815 | -6/Hub_04(d) | Found Prototype Device 14825 | -6/Hub_04(d) | Identified Exp. Thermal Shield 14935 | -6/Hub_04(d) | Discovered exit to Factory (range 16) 14964 | -6/Hub_04(d) | Build established: Construct 14991 | -6/Hub_04(d) | Entered Factory 14991 | -5/Factory | Evolved 2 slots: Utility x2 15219 | -5/Factory | Destroyed 7 combat bots 15500 | -5/Factory | Build established: Scavenger-Mutant 15688 | -5/Factory | Destroyed 7 combat bots 15794 | -5/Factory | Spotted B-75 Beast 15813 | -5/Factory | Destroyed B-75 Beast 15953 | -5/Factory | Build established: Mutant 16209 | -5/Factory | Cargo convoy interrupted 16718 | -5/Factory | Lost 6 parts (1n4u1w) 17040 | -5/Factory | Garrison activated, responded to threat 17078 | -5/Factory | Core integrity fell below 50% 17091 | -5/Factory | First assault squad dispatched 17136 | -5/Factory | Lost 10 parts (1p7u2w) 17201 | -5/Factory | Found PL-3XN's Ring of Power 17244 | -5/Factory | Sucked down chute 17244 | -5/Factory | Entered Waste 17259 | -5/Waste | EMP discharged 17259 | -5/Waste | System corruption reached 10% 17264 | -5/Waste | Spotted C-40 Crusher 17267 | -5/Waste | Spotted C-40 Crusher 17283 | -5/Waste | Spotted C-40 Crusher 17292 | -5/Waste | Spotted C-40 Crusher 17293 | -5/Waste | Spotted C-40 Crusher 17296 | -5/Waste | Core integrity fell below 20% 17296 | -5/Waste | Discovered new exit (range 16) 17296 | -5/Waste | Spotted C-40 Crusher 17304 | -5/Waste | Entered Factory 17638 | -5/Factory | Destroyed by Y-64 Sentinel with Wave Gun Last Messages --------------- payload. 17608_ S-27 Virus unfolds itself. 17609_ Triggered Stasis Trap. 17609_ A bubble of rippling energy engulfs the area. 17609_ Field strength at 66. 17610_ Field strength at 28. 17611_ Stasis field depleted. 17614_ U-05 Engineer lays Concrete. 17621_ System corrupted: Matter fused (-5). 17628_ S-27 Virus destroyed. 17629_ Arm. Scrap Engine consumes VTOL Module. 17630_ Acquired 29 matter. 17630_ Triggered Segregator Trap. 17630_ Arcs of energy rise from the floor. 17630_ Adv. Shield Generator blown off. 17636_ OE&9IPGKJ|,TCL3LV>H